bitfinex/quotes_BTCUSD_20260315
["timestamp","ask_amount","ask_price","bid_price","bid_amount"]
[1773617464837,0.068902,72567.0,72545.0,0.16438472]
[1773617465725,0.20507396,72566.0,72544.0,0.06892368]
[1773617465935,0.20507396,72566.0,72544.0,0.06992368]
[1773617466138,0.20507396,72566.0,72544.0,0.06892368]
[1773617466345,0.20507396,72566.0,72545.0,0.16375549]
[1773617466743,0.06890374,72565.0,72546.0,0.06892178]
[1773617466950,0.06890374,72565.0,72547.0,0.16515549]
[1773617467370,0.06909936,72570.0,72548.0,0.10952771]
[1773617467553,0.06909936,72570.0,72551.0,0.16344081]
[1773617467848,0.06909924,72570.0,72553.0,0.10952771]
[1773617468047,0.06909924,72570.0,72552.0,0.27296852]
[1773617468245,0.06909924,72570.0,72552.0,0.16344081]
[1773617468554,0.20507396,72569.0,72552.0,0.16344081]
[1773617468751,0.20507396,72569.0,72553.0,0.06891513]
[1773617468752,0.06890089,72568.0,72553.0,0.06891513]
[1773617469336,0.06890089,72568.0,72554.0,0.0014]
[1773617469538,0.06890089,72568.0,72551.0,0.10952771]
[1773617469744,0.20507396,72565.0,72551.0,0.0014]
[1773617469976,0.20647396,72565.0,72551.0,0.0014]
[1773617470785,0.06890469,72564.0,72551.0,0.07031623]
[1773617471037,0.20507396,72563.0,72551.0,0.07031623]
[1773617472903,0.06890659,72562.0,72551.0,0.07031623]
[1773617473110,0.06890659,72562.0,72551.0,0.06891623]
[1773617473292,0.06890659,72562.0,72549.0,0.06891802]
[1773617473293,0.20507396,72561.0,72549.0,0.06891802]
[1773617474470,0.20647396,72561.0,72549.0,0.06891802]
[1773617474821,0.06890848,72560.0,72549.0,0.06891802]
[1773617475023,0.20507396,72559.0,72549.0,0.06891802]
[1773617475959,0.06890848,72560.0,72549.0,0.06891802]
[1773617476916,0.07030842,72561.0,72548.0,0.05223064]
[1773617477116,0.07030842,72561.0,72534.0,0.06893301]
[1773617477117,0.20507396,72559.0,72534.0,0.06893301]
[1773617477311,0.20507396,72559.0,72535.0,0.06893212]
[1773617477721,0.20507396,72557.0,72535.0,0.06893212]
[1773617477925,0.20489702,72557.0,72532.0,0.06893449]
[1773617478132,0.20472008,72557.0,72533.0,0.06893403]
[1773617478370,0.20472008,72557.0,72531.0,0.26785739]
[1773617478539,0.20472008,72557.0,72530.0,0.06915689]
[1773617478540,0.20507396,72555.0,72530.0,0.00022]
[1773617478756,0.20507396,72549.0,72530.0,0.00022]
[1773617478892,0.20507396,72549.0,72526.0,0.00022]
[1773617478893,0.20507396,72546.0,72526.0,0.00022]
[1773617480040,0.20507396,72546.0,72526.0,0.00067282]
[1773617480245,0.20507396,72546.0,72520.0,0.06899619]
[1773617480246,0.20507396,72538.0,72523.0,1e-08]
[1773617480454,0.20507396,72536.0,72523.0,1e-08]
[1773617481071,0.06893223,72535.0,72523.0,1e-08]
[1773617481376,0.20507396,72534.0,72523.0,1e-08]
[1773617482859,0.06893223,72535.0,72523.0,1e-08]
[1773617483583,0.07033223,72535.0,72523.0,1e-08]
[1773617483919,0.001,72534.0,72523.0,1e-08]
[1773617484367,0.001,72534.0,72524.0,0.1935473]
[1773617484514,0.07033223,72535.0,72524.0,0.1935473]
[1773617484716,0.0014,72535.0,72524.0,0.1935473]
[1773617485167,0.0689208,72548.0,72525.0,0.06894174]
[1773617485366,0.0689208,72548.0,72526.0,0.1949473]
[1773617485568,0.0014,72547.0,72526.0,0.1949473]
[1773617486413,0.0014,72546.0,72526.0,0.1949473]
[1773617487016,0.0689208,72548.0,72526.0,0.1949473]
[1773617487257,0.0014,72545.0,72526.0,0.1949473]
[1773617487531,0.06874671,72544.0,72528.0,0.1935473]
[1773617487882,0.06892076,72548.0,72528.0,0.1935473]
[1773617488209,0.07032132,72547.0,72528.0,0.1935473]
[1773617488410,0.0014,72546.0,72528.0,0.1935473]
[1773617488613,0.0014,72550.0,72528.0,0.1935473]
[1773617489622,0.06891893,72549.0,72530.0,0.1935473]
[1773617490364,0.07031814,72550.0,72530.0,0.1935473]
[1773617490365,0.06891814,72550.0,72530.0,0.1935473]
[1773617490637,0.19509287,72549.0,72529.0,0.06893794]
[1773617491002,0.06891814,72550.0,72529.0,0.06893794]
[1773617491003,0.19649287,72548.0,72529.0,0.06893794]
[1773617491421,0.19649287,72548.0,72530.0,0.0014]
[1773617491799,0.19509287,72546.0,72527.0,0.06893794]
[1773617492004,0.19509287,72546.0,72528.0,0.0014]
[1773617492403,0.19509287,72546.0,72527.0,0.06893794]
[1773617492640,0.19509287,72546.0,72527.0,0.07033794]
[1773617494135,0.26383863,72545.0,72527.0,0.07055794]
[1773617494582,0.24610593,72559.0,72528.0,0.1935473]
[1773617494583,0.06891038,72558.0,72528.0,0.1935473]
[1773617495009,0.26400325,72558.0,72528.0,0.1935473]
[1773617495212,0.19509287,72557.0,72528.0,0.1935473]
[1773617495632,0.0014,72556.0,72528.0,0.1935473]
[1773617496067,0.0002,72559.0,72532.0,0.06893509]
[1773617496292,0.06909977,72570.0,72549.0,0.17097008]
[1773617496293,0.06909938,72570.0,72549.0,0.17097008]
[1773617496503,0.06909938,72570.0,72534.0,0.33428725]
[1773617496504,0.06910327,72566.0,72550.0,0.1949473]
[1773617496702,0.19509287,72565.0,72551.0,0.0014]
[1773617496837,0.19509287,72565.0,72552.0,0.0014]
[1773617499205,0.19509287,72563.0,72553.0,0.06891513]
[1773617499406,0.19509287,72561.0,72545.0,0.06892273]
[1773617499550,0.23963002,72562.0,72535.0,0.06893223]
[1773617499551,0.19509287,72559.0,72535.0,0.06893223]
[1773617499888,0.19509287,72559.0,72536.0,0.0014]
[1773617500262,0.19509287,72559.0,72535.0,0.06903878]
[1773617500459,0.19509287,72559.0,72536.0,0.0014]
[1773617500686,0.19509287,72559.0,72535.0,0.06903878]
[1773617501005,0.19509287,72559.0,72537.0,0.0014]
[1773617501301,0.19509287,72557.0,72538.0,0.06892938]
[1773617503094,0.19509287,72557.0,72535.0,0.00010655]
[1773617503362,0.19509287,72555.0,72535.0,0.00010655]
[1773617503940,0.0014,72554.0,72535.0,0.00010655]
[1773617504143,0.19509287,72553.0,72535.0,0.00010655]
[1773617505304,0.19509287,72551.0,72535.0,0.00010655]
[1773617507148,0.06891608,72552.0,72535.0,0.00010655]
[1773617507349,0.06891608,72552.0,72535.0,0.19365385]
[1773617507578,0.0014,72551.0,72536.0,0.06893128]
[1773617508315,0.19509287,72550.0,72535.0,0.06903783]
[1773617509235,0.19509287,72550.0,72535.0,0.00010655]
[1773617509430,0.06891893,72549.0,72535.0,0.00010655]
[1773617509599,0.19509287,72548.0,72535.0,0.00010655]
[1773617511448,0.06892083,72547.0,72535.0,0.00010655]
[1773617515484,0.06911989,72548.0,72535.0,0.06903878]
[1773617520246,0.06911989,72548.0,72535.0,0.00010655]
[1773617520758,0.19875576,72547.0,72523.0,1e-08]
[1773617520959,0.19886226,72547.0,72527.0,0.06915951]
[1773617521296,0.19886226,72547.0,72535.0,0.00022]
[1773617521297,0.0001065,72547.0,72535.0,0.00022]
[1773617522313,0.0002,72548.0,72537.0,0.20631054]
[1773617522525,0.0014,72548.0,72537.0,0.20641704]
[1773617522747,0.0014,72548.0,72537.0,0.20781704]
[1773617522748,0.06892047,72548.0,72537.0,0.20781704]
[1773617522950,0.06891702,72552.0,72537.0,0.20781704]
[1773617523152,0.06890868,72560.0,72537.0,0.20781704]
[1773617523529,0.06910965,72559.0,72537.0,0.20781704]
[1773617523855,0.06910943,72561.0,72537.0,0.20781704]
[1773617523856,0.0002,72561.0,72537.0,0.20781704]
[1773617524073,0.0002,72567.0,72541.0,0.20631054]
[1773617524278,0.0002,72567.0,72543.0,0.20631054]
[1773617524279,0.06910201,72567.0,72543.0,0.20631054]
[1773617524481,0.06910201,72567.0,72545.0,0.20631054]
[1773617526816,0.06910201,72567.0,72547.0,0.20631054]
[1773617528923,0.06910201,72567.0,72549.0,0.20631054]
[1773617529125,0.06910201,72567.0,72551.0,0.20631054]
[1773617530865,0.0002,72567.0,72552.0,0.06891608]
[1773617531064,0.0002,72567.0,72553.0,0.20631054]
[1773617532440,0.0002,72577.0,72553.0,0.20631054]
[1773617533192,0.06909247,72577.0,72555.0,0.20631054]
[1773617533568,0.06909247,72577.0,72557.0,0.20631054]
[1773617534177,5e-05,72578.0,72557.0,0.20631054]
[1773617534382,6e-05,72581.0,72557.0,0.20631054]
[1773617534603,0.06894884,72581.0,72557.0,0.20631054]
[1773617535224,0.19875576,72580.0,72558.0,0.06891038]
[1773617535422,0.19875576,72580.0,72558.0,0.27522092]
[1773617535700,0.19875576,72580.0,72559.0,0.20631054]
[1773617536104,0.19875576,72580.0,72558.0,0.06891038]
[1773617536304,0.19875576,72580.0,72558.0,0.07031038]
[1773617536494,0.06894884,72581.0,72558.0,0.06891038]
[1773617536699,0.06894884,72581.0,72561.0,0.20631054]
[1773617536894,0.06905539,72581.0,72561.0,0.20631054]
[1773617537329,0.06889045,72579.0,72562.0,0.06890659]
[1773617537495,0.06889045,72579.0,72556.0,0.1094031]
[1773617537496,0.19875576,72578.0,72550.0,5e-05]
[1773617537702,0.06889045,72579.0,72550.0,5e-05]
[1773617537703,0.19875576,72576.0,72553.0,0.20631054]
[1773617537926,0.06889045,72579.0,72553.0,0.20631054]
[1773617538229,0.0014,72578.0,72553.0,0.20631054]
[1773617538435,0.19875576,72577.0,72553.0,0.20631054]
[1773617538850,0.19895576,72577.0,72553.0,0.20631054]
[1773617539478,0.26764905,72576.0,72555.0,0.20631054]
[1773617539677,0.19875576,72575.0,72555.0,0.20631054]
[1773617539897,0.19875576,72575.0,72554.0,0.06891418]
[1773617540690,0.19875576,72575.0,72555.0,0.20771054]
[1773617541058,0.19875576,72575.0,72555.0,0.0014]
[1773617541904,0.19875576,72573.0,72556.0,0.06891228]
[1773617542060,0.19387055,72571.0,72557.0,0.0014]
[1773617542485,0.19387055,72571.0,72556.0,0.06891228]
[1773617542732,0.19387055,72571.0,72558.0,0.0014]
[1773617543255,0.0014,72572.0,72558.0,0.0014]
[1773617543707,0.06889804,72571.0,72559.0,0.06890943]
[1773617544295,0.23222824,72569.0,72549.0,0.06891845]
[1773617544491,0.19387055,72568.0,72547.0,0.06892066]
[1773617544694,0.19387055,72568.0,72546.0,0.01904602]
[1773617544695,0.19387055,72568.0,72549.0,0.0689184]
[1773617544879,0.19387055,72568.0,72550.0,0.06896788]
[1773617545286,0.19387055,72568.0,72550.0,5e-05]
[1773617545619,0.19387055,72568.0,72548.0,0.06891966]
[1773617545839,0.19387055,72566.0,72546.0,0.08796688]
[1773617546402,0.19387055,72564.0,72546.0,0.08936688]
[1773617546603,0.19387055,72564.0,72546.0,0.08796688]
[1773617546804,0.19387055,72564.0,72546.0,0.08936688]
[1773617547256,0.19387055,72564.0,72546.0,0.08796688]
[1773617547421,0.19387055,72564.0,72546.0,0.08936688]
[1773617548245,0.26277619,72563.0,72546.0,0.08936688]
[1773617548447,0.26277619,72563.0,72547.0,0.19591706]
[1773617548851,0.0014,72562.0,72547.0,0.19591706]
[1773617550455,0.19387055,72560.0,72546.0,0.08936688]
[1773617552162,0.06890753,72561.0,72546.0,0.08936688]
[1773617552365,0.06890753,72561.0,72546.0,0.07032086]
[1773617553159,0.19387055,72559.0,72543.0,0.0014]
[1773617553561,0.19387055,72559.0,72540.0,0.06897653]
[1773617553764,0.19387055,72559.0,72541.0,0.0014]
[1773617554841,0.19387055,72557.0,72542.0,0.06892558]
[1773617555017,0.19387055,72555.0,72542.0,0.06892558]
[1773617556704,0.06891418,72554.0,72542.0,0.06892558]
[1773617559357,0.06891418,72554.0,72538.0,0.06892882]
[1773617559570,0.06891418,72554.0,72538.0,0.0001065]
[1773617559862,0.19387055,72553.0,72538.0,0.0001065]
[1773617560017,0.19387055,72553.0,72542.0,0.00022]
[1773617560571,0.06891418,72554.0,72542.0,0.00022]
[1773617560798,0.0014,72553.0,72542.0,0.00022]
[1773617561476,0.06891339,72555.0,72543.0,0.06892463]
[1773617561650,0.0014,72554.0,72543.0,0.26484169]
[1773617562007,0.06891339,72555.0,72543.0,0.26484169]
[1773617562238,0.0014,72554.0,72543.0,0.26484169]
[1773617563819,0.06891513,72553.0,72543.0,0.06892463]
[1773617565289,0.06891485,72554.0,72543.0,0.06892463]
[1773617566448,0.06891297,72556.0,72543.0,0.06892463]
[1773617566653,0.06891297,72556.0,72544.0,0.19591706]
[1773617566654,0.0014,72556.0,72544.0,0.19591706]
[1773617566896,0.06891274,72556.0,72544.0,0.19591706]
[1773617567115,0.19387055,72555.0,72543.0,0.06892463]
[1773617568357,0.06891418,72554.0,72543.0,0.06892463]
[1773617569552,0.06891418,72554.0,72543.0,0.06914463]
[1773617570112,0.19387055,72553.0,72538.0,0.0001065]
[1773617570336,0.19387055,72553.0,72527.0,0.20560252]
[1773617570337,0.19387055,72551.0,72528.0,0.16508695]
[1773617570545,0.19387055,72549.0,72521.0,0.01571618]
[1773617570752,0.19387055,72549.0,72521.0,0.08466141]
[1773617570899,0.19387055,72547.0,72525.0,0.06899123]
[1773617571325,0.19387055,72547.0,72523.0,0.06894175]
[1773617572139,0.19387055,72547.0,72523.0,1e-08]
[1773617572452,0.2032821,72545.0,72523.0,1e-08]
[1773617574161,0.18998866,72543.0,72523.0,1e-08]
[1773617574356,0.18998866,72543.0,72520.0,0.06894459]
[1773617574357,0.06892558,72542.0,72520.0,0.05565539]
[1773617574576,0.18998866,72541.0,72522.0,0.06894423]
[1773617576493,0.18998866,72541.0,72524.0,0.06894269]
[1773617576494,0.18998866,72539.0,72524.0,0.06894269]
[1773617577300,0.0014,72538.0,72524.0,0.06894269]
[1773617577506,0.18998866,72537.0,72523.0,0.00022]
[1773617578258,0.0014,72538.0,72519.0,0.00022]
[1773617578259,0.05702278,72533.0,72519.0,0.00022]
[1773617578436,0.18998866,72532.0,72519.0,0.00022]
[1773617578768,0.0014,72538.0,72519.0,0.00022]
[1773617578769,0.06892938,72538.0,72519.0,0.06916713]
[1773617578974,0.05702278,72560.0,72528.0,0.05702278]
[1773617579176,0.23242824,72569.0,72541.0,0.18874162]
[1773617579177,0.06890556,72564.0,72541.0,0.18874162]
[1773617579380,0.23242824,72569.0,72541.0,0.18874162]
[1773617579381,0.0689602,72559.0,72543.0,0.18874162]
[1773617579777,0.06895967,72559.0,72543.0,0.18874162]
[1773617580717,0.06895967,72559.0,72545.0,0.18874162]
[1773617581512,0.06895967,72559.0,72545.0,0.04420337]
[1773617583090,0.06895967,72559.0,72546.0,0.06892178]
[1773617583544,0.06895967,72559.0,72546.0,0.2576634]
[1773617584347,0.06895967,72559.0,72547.0,0.18874162]
[1773617584544,0.06895967,72559.0,72548.0,0.0014]
[1773617584910,0.06915967,72559.0,72548.0,0.000322]
[1773617585369,0.06915967,72559.0,72548.0,0.06924117]
[1773617585595,0.06915967,72559.0,72535.0,0.00022]
[1773617585596,0.18998866,72558.0,72530.0,5e-05]
[1773617585975,0.18998866,72558.0,72523.0,0.0014]
[1773617585976,0.18998866,72549.0,72522.0,0.06894452]
[1773617586130,0.06915967,72559.0,72525.0,0.06899155]
[1773617586131,0.18998866,72547.0,72525.0,0.06899155]
[1773617586337,0.18998866,72545.0,72525.0,0.06894155]
[1773617586542,0.18998866,72543.0,72525.0,0.06894155]
[1773617586740,0.18998866,72543.0,72523.0,0.06894287]
[1773617587571,0.18998866,72541.0,72521.0,0.06894461]
[1773617588807,0.18998866,72541.0,72519.0,0.00022]
[1773617589658,0.28841815,72539.0,72519.0,0.00022]
[1773617589864,0.18998866,72537.0,72519.0,0.06916729]
[1773617590079,0.18998866,72537.0,72519.0,0.00022]
[1773617591638,0.06893128,72536.0,72519.0,0.00022]
[1773617591786,0.18998866,72535.0,72519.0,0.00022]
[1773617592189,0.18998866,72535.0,72519.0,0.06916683]
[1773617592405,0.06893128,72536.0,72520.0,0.18874162]
[1773617592575,0.06893128,72536.0,72519.0,0.0691673]
[1773617592576,0.18998866,72535.0,72519.0,0.0691673]
[1773617592775,0.06893128,72536.0,72519.0,0.0691673]
[1773617592776,0.06893128,72536.0,72520.0,0.18874162]
[1773617592997,0.18998866,72535.0,72519.0,0.00022]
[1773617593755,0.06893318,72534.0,72519.0,0.00022]
[1773617593954,0.25892184,72534.0,72519.0,0.00022]
[1773617594172,0.06893318,72534.0,72519.0,0.00022]
[1773617594457,0.18998866,72533.0,72519.0,0.00022]
[1773617594701,0.18998866,72533.0,72517.0,0.00022]
[1773617595135,0.18998866,72533.0,72515.0,0.00022]
[1773617595340,0.17092972,72530.0,72505.0,1e-08]
[1773617595517,0.19138866,72529.0,72505.0,1e-08]
[1773617595916,0.18998866,72527.0,72505.0,1e-08]
[1773617596689,0.17092972,72520.0,72504.0,1e-08]
[1773617596905,0.19138866,72519.0,72504.0,1e-08]
[1773617597126,0.06893889,72528.0,72504.0,1e-08]
[1773617597127,0.18998866,72517.0,72504.0,1e-08]
[1773617597324,0.18998866,72515.0,72504.0,1e-08]
[1773617597472,0.0001299,72522.0,72504.0,1e-08]
[1773617597473,0.19138866,72514.0,72504.0,1e-08]
[1773617597676,0.18998866,72512.0,72504.0,1e-08]
[1773617597971,0.07035505,72511.0,72504.0,1e-08]
[1773617599108,0.06895505,72511.0,72504.0,1e-08]
[1773617599313,0.0014,72510.0,72504.0,1e-08]
[1773617599883,0.06895695,72509.0,72504.0,1e-08]
[1773617600088,0.18998866,72508.0,72495.0,5e-05]
[1773617600293,0.18998866,72508.0,72480.0,5e-05]
[1773617600294,0.18998866,72499.0,72470.0,5e-05]
[1773617600498,0.0014,72498.0,72470.0,0.06904382]
[1773617600700,0.19138866,72497.0,72470.0,0.06904382]
[1773617601027,0.18998866,72495.0,72471.0,0.18874162]
[1773617601154,0.18998866,72493.0,72471.0,0.18874162]
[1773617601344,0.18998866,72491.0,72470.0,0.06899382]
[1773617601547,0.18998866,72489.0,72470.0,0.06899382]
[1773617601742,0.06897788,72487.0,72469.0,0.06899406]
[1773617601987,0.19138866,72486.0,72469.0,0.06899406]
[1773617602189,0.0014,72486.0,72469.0,0.06899406]
[1773617602496,0.06897788,72487.0,72470.0,0.20465806]
[1773617602497,0.0014,72485.0,72470.0,0.20465806]
[1773617603312,0.06897788,72487.0,72470.0,0.20465806]
[1773617604279,0.20424717,72487.0,72467.0,0.06899692]
[1773617604475,0.20424717,72487.0,72466.0,0.07039733]
[1773617604778,0.20424717,72487.0,72465.0,0.06904873]
[1773617604779,0.20424717,72487.0,72465.0,5e-05]
[1773617605025,0.06897788,72488.0,72466.0,0.20465806]
[1773617605353,0.0014,72486.0,72466.0,0.20465806]
[1773617605741,0.0014,72486.0,72466.0,0.20501316]
[1773617606120,0.0014,72485.0,72468.0,0.20465806]
[1773617606344,0.06898074,72484.0,72470.0,0.06899406]
[1773617607177,0.07038028,72485.0,72470.0,0.06899406]
[1773617608173,0.07038028,72485.0,72469.0,0.00022]
[1773617608328,0.06898169,72483.0,72469.0,0.00022]
[1773617608534,0.20424717,72482.0,72469.0,0.00022]
[1773617609575,0.20424717,72482.0,72460.0,0.0002969]
[1773617609746,0.20424717,72482.0,72464.0,0.0001064]
[1773617610390,0.06898359,72481.0,72460.0,0.0002969]
[1773617610606,0.20424717,72480.0,72461.0,0.00032668]
[1773617610777,0.20424717,72478.0,72460.0,0.0002469]
[1773617610981,0.20424717,72476.0,72455.0,5e-05]
[1773617611279,0.20424717,72472.0,72450.0,5e-05]
[1773617611457,0.20424717,72470.0,72450.0,5e-05]
[1773617611667,0.20424717,72468.0,72450.0,5e-05]
[1773617611868,0.20424717,72466.0,72450.0,5e-05]
[1773617612064,0.20424717,72464.0,72446.0,0.0002469]
[1773617612265,0.20424717,72462.0,72446.0,0.06926334]
[1773617612700,0.20424717,72460.0,72435.0,0.06907663]
[1773617613292,0.20424717,72458.0,72435.0,5e-05]
[1773617613562,0.06900263,72461.0,72435.0,0.06907708]
[1773617613563,0.20424717,72456.0,72435.0,0.06907708]
[1773617613871,0.06900263,72461.0,72435.0,0.06902708]
[1773617613872,0.20424717,72454.0,72435.0,0.06902708]
[1773617614367,0.20424717,72454.0,72435.0,0.0002067]
[1773617614760,0.20424717,72452.0,72435.0,0.00046197]
[1773617615720,0.20424717,72452.0,72435.0,0.06948897]
[1773617616318,0.20424717,72452.0,72435.0,0.00046197]
[1773617616744,0.20424717,72450.0,72435.0,0.00046197]
[1773617617152,0.17092972,72450.0,72425.0,5e-05]
[1773617617408,0.06901215,72451.0,72406.0,0.06901379]
[1773617617409,0.20424717,72444.0,72406.0,0.06901379]
[1773617617678,0.20424717,72442.0,72406.0,0.06912059]
[1773617618638,0.17092972,72430.0,72406.0,0.0001068]
[1773617618839,0.06902168,72441.0,72406.0,0.0001068]
[1773617618840,0.06902168,72441.0,72407.0,0.20465806]
[1773617619077,0.20424717,72436.0,72407.0,0.20465806]
[1773617619293,0.20424717,72436.0,72406.0,0.0001068]
[1773617619861,0.20424717,72434.0,72407.0,0.20465806]
[1773617621052,0.0690293,72433.0,72409.0,0.20465806]
[1773617621250,0.0014,72432.0,72409.0,0.20465806]
[1773617621522,0.20424717,72431.0,72409.0,0.20465806]
[1773617621729,0.0014,72430.0,72410.0,0.20605806]
[1773617621854,0.20424717,72429.0,72410.0,0.0014]
[1773617622304,0.20424717,72429.0,72417.0,0.00022]
[1773617622462,0.20424717,72429.0,72410.0,0.0014]
[1773617622667,0.20424717,72429.0,72410.0,0.00162]
[1773617622869,0.20424717,72429.0,72410.0,0.00022]
[1773617623070,0.20424717,72427.0,72411.0,0.06905028]
[1773617623516,0.06903026,72432.0,72412.0,0.20465806]
[1773617623720,0.06903026,72432.0,72411.0,0.06905028]
[1773617623721,0.20424717,72431.0,72411.0,0.06905028]
[1773617624052,0.20564717,72431.0,72412.0,0.20465806]
[1773617624275,0.0014,72430.0,72412.0,0.20465806]
[1773617624491,0.27327328,72437.0,72412.0,0.20465806]
[1773617624492,0.0014,72429.0,72412.0,0.20465806]
[1773617624733,0.06902549,72440.0,72411.0,0.07045028]
[1773617624734,0.0005672,72473.0,72421.0,0.34201339]
[1773617624931,0.0005672,72473.0,72427.0,0.20465806]
[1773617624932,0.17125855,72470.0,72427.0,0.20465806]
[1773617625050,0.0005672,72473.0,72427.0,0.20465806]
[1773617625051,0.00136,72471.0,72432.0,0.20465806]
[1773617625257,0.20424717,72469.0,72434.0,0.20465806]
[1773617625581,0.17125855,72460.0,72434.0,0.20465806]
[1773617625784,0.00136,72459.0,72436.0,0.20465806]
[1773617626186,0.00136,72459.0,72437.0,0.0014]
[1773617626187,0.0017149,72459.0,72437.0,0.0014]
[1773617626425,0.0017149,72459.0,72438.0,0.20465806]
[1773617626571,0.0017149,72459.0,72439.0,0.0014]
[1773617626912,0.0017149,72459.0,72440.0,0.20605806]
[1773617627464,0.0017149,72459.0,72442.0,0.20465806]
[1773617627893,0.17125855,72452.0,72443.0,0.0014]
[1773617628062,0.07071975,72459.0,72443.0,0.0014]
[1773617628267,0.06899876,72466.0,72443.0,0.0014]
[1773617628268,0.0006172,72493.0,72444.0,0.20465806]
[1773617628614,0.17125855,72460.0,72445.0,0.0014]
[1773617628767,0.20424717,72469.0,72445.0,0.0014]
[1773617628968,0.17125855,72470.0,72441.0,0.06902168]
[1773617628969,0.20424717,72467.0,72441.0,0.06902168]
[1773617629300,0.17125855,72460.0,72441.0,0.06902168]
[1773617629475,0.06900454,72459.0,72441.0,0.06902168]
[1773617630442,0.00136,72458.0,72442.0,0.0014]
[1773617630661,0.00136,72458.0,72441.0,0.06902168]
[1773617630864,0.00136,72458.0,72436.0,0.06902576]
[1773617630865,0.17125855,72451.0,72436.0,0.06902576]
[1773617631087,0.17125855,72451.0,72435.0,0.00022]
[1773617631293,0.37550572,72451.0,72435.0,0.00022]
[1773617631496,0.37550572,72451.0,72423.0,0.06903856]
[1773617631497,0.06901501,72448.0,72423.0,0.06903856]
[1773617631706,0.06901501,72448.0,72415.0,0.20470806]
[1773617631707,0.20424717,72439.0,72417.0,0.0690443]
[1773617631906,0.17125855,72440.0,72415.0,5e-05]
[1773617631907,0.20424717,72437.0,72415.0,0.06909579]
[1773617632030,0.20424717,72437.0,72420.0,0.0006249]
[1773617633685,0.06902645,72436.0,72420.0,0.0006249]
[1773617633854,0.25942634,72436.0,72420.0,0.0006249]
[1773617634694,0.19039989,72435.0,72420.0,0.0006249]
[1773617635725,0.06902835,72434.0,72420.0,0.0006249]
[1773617636994,0.19039989,72433.0,72420.0,0.0006249]
[1773617637197,0.17125855,72430.0,72420.0,1e-08]
[1773617637519,0.17125855,72430.0,72408.0,0.06905282]
[1773617637717,0.06903312,72429.0,72411.0,0.19481875]
[1773617638776,0.06903312,72429.0,72420.0,0.00022]
[1773617638996,0.0002,72458.0,72421.0,0.33021614]
[1773617639126,0.0002,72458.0,72422.0,0.19621875]
[1773617639127,0.06900644,72457.0,72422.0,0.19621875]
[1773617639341,0.17125855,72450.0,72422.0,0.19621875]
[1773617639541,0.19039989,72451.0,72423.0,0.0014]
[1773617639772,0.06901311,72450.0,72425.0,0.06903693]
[1773617640116,0.19175989,72449.0,72425.0,0.06903693]
[1773617640465,0.06900645,72457.0,72425.0,0.06903693]
[1773617640466,0.0002,72460.0,72426.0,0.19481875]
[1773617640664,0.06900493,72459.0,72426.0,0.19481875]
[1773617640866,0.0016,72458.0,72426.0,0.19481875]
[1773617641066,0.07060599,72458.0,72426.0,0.19481875]
[1773617642041,0.07060599,72458.0,72427.0,0.06903502]
[1773617642265,0.07060599,72458.0,72428.0,0.19481875]
[1773617642902,0.0016,72458.0,72428.0,0.19481875]
[1773617643115,0.07060577,72458.0,72428.0,0.19481875]
[1773617643584,0.0014,72458.0,72428.0,0.19481875]
[1773617643782,0.0002,72466.0,72440.0,0.17125855]
[1773617643988,0.0002,72466.0,72428.0,0.001]
[1773617643989,0.06919647,72468.0,72441.0,0.19621875]
[1773617644184,0.06919647,72468.0,72443.0,0.19481875]
[1773617644360,0.0002,72468.0,72443.0,0.19481875]
[1773617644974,0.0005549,72468.0,72443.0,0.19481875]
[1773617645372,0.06955122,72468.0,72443.0,0.19481875]
[1773617646519,0.06955122,72468.0,72445.0,0.19481875]
[1773617646823,0.0005549,72468.0,72445.0,0.19481875]
[1773617647166,0.06955114,72468.0,72445.0,0.19481875]
[1773617647366,0.0005549,72468.0,72445.0,0.19481875]
[1773617648010,0.0005672,72473.0,72445.0,0.19481875]
[1773617648211,0.00136,72479.0,72452.0,0.19481875]
[1773617648412,0.00136,72479.0,72454.0,0.19481875]
[1773617648614,0.00136,72479.0,72456.0,0.19481875]
[1773617649019,0.06903016,72485.0,72456.0,0.19481875]
[1773617649020,0.06903,72485.0,72456.0,0.19481875]
[1773617649191,0.0688531,72485.0,72456.0,0.19481875]
[1773617649614,0.0702131,72485.0,72456.0,0.19481875]
[1773617650018,0.00136,72485.0,72456.0,0.19481875]
[1773617650224,0.0689679,72498.0,72461.0,0.19481875]
[1773617650481,0.06896416,72502.0,72472.0,0.06899216]
[1773617650482,0.06896692,72499.0,72472.0,0.06899216]
[1773617650606,0.06958976,72493.0,72473.0,0.0014]
[1773617650808,0.19039989,72492.0,72472.0,0.06899216]
[1773617651015,0.19039989,72490.0,72472.0,0.06899216]
[1773617651229,0.19039989,72488.0,72472.0,0.06899216]
[1773617651435,0.13684094,72487.0,72472.0,0.06899216]
[1773617651850,0.00136,72486.0,72472.0,0.06899216]
[1773617652048,0.00136,72486.0,72456.0,0.06900739]
[1773617652252,0.19039989,72485.0,72456.0,0.07040739]
[1773617652477,0.06898264,72482.0,72456.0,0.07040739]
[1773617652694,0.19039989,72481.0,72456.0,0.07040739]
[1773617653002,0.13684094,72480.0,72456.0,0.07040739]
[1773617653243,0.00136,72479.0,72456.0,0.07040739]
[1773617653413,0.19039989,72478.0,72456.0,0.07040739]
[1773617653612,0.19039989,72475.0,72456.0,0.06900692]
[1773617653846,0.19039989,72473.0,72455.0,0.06900835]
[1773617654521,0.06899406,72470.0,72453.0,0.06900835]
[1773617654690,0.19039989,72469.0,72453.0,0.06900835]
[1773617655222,0.06899406,72470.0,72453.0,0.06900835]
[1773617655446,0.07039406,72470.0,72453.0,0.06900835]
[1773617657510,0.07039406,72470.0,72453.0,0.07040835]
[1773617657712,0.19039989,72469.0,72452.0,0.0003549]
[1773617659256,0.06899597,72468.0,72452.0,0.06936583]
[1773617660406,0.19039989,72467.0,72452.0,0.0003549]
[1773617660592,0.19039989,72465.0,72445.0,0.06906769]
[1773617660840,0.13680444,72464.0,72445.0,0.06906769]
[1773617660960,0.0014,72463.0,72445.0,0.06906769]
[1773617661177,0.0014,72471.0,72446.0,0.19481875]
[1773617661363,0.0014,72471.0,72448.0,0.19481875]
[1773617661364,0.07039464,72470.0,72448.0,0.19481875]
[1773617661592,0.19039989,72469.0,72447.0,0.06901597]
[1773617661770,0.19039989,72469.0,72449.0,0.0014]
[1773617662173,0.19039989,72469.0,72450.0,0.0014]
[1773617662888,0.07039464,72470.0,72450.0,0.1919576]
[1773617663499,0.07039464,72470.0,72451.0,0.06901215]
[1773617663695,0.0014,72469.0,72451.0,0.06901215]
[1773617664113,0.0002,72469.0,72451.0,0.06901215]
[1773617664314,0.0014,72468.0,72451.0,0.06901215]
[1773617664732,0.0014,72467.0,72451.0,0.06901215]
[1773617668663,0.0014,72467.0,72454.0,0.1905576]
[1773617669251,0.07039695,72467.0,72454.0,0.1905576]
[1773617669995,0.0014,72467.0,72455.0,0.06900835]